[Event "53rd Indian Junior Open-ch 2024"]
[Site "Karnal"]
[Date "2024.09.19"]
[Round "5.5"]
[White "Bhattacharyya Soham"]
[Black "Shah Moxit J"]
[Result "1/2-1/2"]
[ECO "A52"]
[WhiteElo "2425"]
[BlackElo "1952"]
[Annotator "TA"]
[PlyCount "73"]
[EventDate "2024.09.16"]
[EventType "swiss"]
[EventCountry "IND"]
[SourceTitle "playchess.com"]
[Source "ChessBase"]
[SourceQuality "1"]
[TimeControl "5400+30"]

{[%evp 11,73,23,76,42,39,15,4,0,22,0,0,0,0,-89,-93,-98,-89,-82,-109,-94,-95,-160,-167,-165,-79,-323,-314,-509,-500,-464,-415,-401,-355,-335,-352,-333,-334,-357,-347,-325,-318,-341,-287,-408,-404,-368,-286,-283,-287,-283,-195,-199,-187,-247,-190,-179,-177,-185,-195,-191,0,-182,-174,-175]} 1. d4 {[%emt 0:00:31]} Nf6 {[%emt 0:00:21]} 2. c4 {[%emt 0:00:10]} e5 {[%emt 0:00:07]} 3. dxe5 {[%emt 0:02:12]} Ng4 {[%emt 0:00:04]} 4. e4 {[%emt 0:01:56]} Nxe5 {[%emt 0:00:04]} 5. f4 {[%emt 0:00:41]} Nec6 {[%emt 0:00:05]} 6. Be3 {[%emt 0:03:29]} Na6 {[%emt 0:01:22]} (6... Bb4+ $11 {remains equal.} 7. Nd2 d6) 7. Nc3 {[%emt 0:12:23] White is more active.} Bc5 {[%emt 0:03:48]} 8. Bxc5 {[%emt 0:01:35]} Nxc5 {[%emt 0:00:04]} 9. Bd3 {[%emt 0:00:22] The position is equal.} O-O {[%emt 1:29:05][%cal Of7f5]} (9... Nxd3+ 10. Qxd3 d6 11. Nf3 $14) 10. Nge2 {[%emt 0:02:54]} Qh4+ {[%emt 0:00:00]} 11. g3 {[%emt 0:00:06]} Qh3 {[%emt 0:00:00]} 12. Nd5 {[%emt 0:13:40]} (12. Qd2 $11) 12... d6 $1 $17 {[%emt 0:00:00]} 13. b4 {[%emt 0:08:45]} Nxd3+ {[%emt 0:00:00]} 14. Qxd3 {[%emt 0:00:06][%cal Ob4b5]} a5 {[%emt 0:00:00]} 15. bxa5 {[%emt 0:06:35]} Rxa5 {[%emt 0:00:00]} 16. Kf2 {[%emt 0:01:03] [#]} (16. Nec3 $142) 16... f5 $1 {[%emt 0:00:00]} 17. Nec3 {[%emt 0:06:26]} Ra3 {[%emt 0:00:00]} (17... fxe4 $19 {and Black stays clearly on top.} 18. Nxe4 Bf5) 18. Rae1 $2 {[%emt 0:01:46]} (18. Qf1 $17 Qg4 (18... fxe4 19. Qxh3 Bxh3 20. Nxe4 $17) 19. Qc1) 18... Ne5 {[%emt 0:00:00]} 19. Qc2 {[%emt 0:04:22] [#]} (19. Qd4 {was called for.} fxe4 20. Rxe4) 19... fxe4 $1 $19 {[%emt 0:00:00]} (19... Nxc4 20. Nb1 $16 (20. Nxc7 $2 {perishes.} fxe4 21. N7d5 Ne5 $19)) 20. Rxe4 {[%emt 0:03:21]} Qh5 {[%emt 0:00:00]} 21. Ke1 {[%emt 0:04:33]} Qf3 {[%emt 0:00:00]} 22. Rf1 {[%emt 0:08:43]} Nd3+ {[%emt 0:00:00]} 23. Kd2 {[%emt 0:00:04]} Qxf1 {[%emt 0:00:00]} 24. Qxd3 {[%emt 0:00:01]} Qxd3+ {[%emt 0:00:00]} 25. Kxd3 {[%emt 0:00:02]} c6 {[%emt 0:00:00]} 26. Ne3 {[%emt 0:00:16]} Kf7 {[%emt 0:00:00] Inhibits Re7+.} 27. Rd4 {[%emt 0:00:31]} (27. Nc2 $142 Ra5 28. Re1) 27... Re8 {[%emt 0:00:00]} 28. Ned1 {[%emt 0:00:21]} Rd8 {[%emt 0:00:00]} 29. Kc2 {[%emt 0:01:42]} Be6 {[%emt 0:00:00]} 30. Ne3 {[%emt 0:01:35]} b5 {[%emt 0:00:00]} 31. cxb5 {[%emt 0:00:59]} cxb5 {[%emt 0:00:00]} ({Worse is} 31... Bxa2 32. bxc6 Ra6 33. Kd3 $11) 32. Kb2 {[%emt 0:00:06]} (32. Kd2 $142) 32... Rda8 {[%emt 0:00:00][%cal Re6a2]} 33. Nc2 {[%emt 0:00:33]} R3a6 {[%emt 0:00:00]} 34. Nb4 {[%emt 0:04:42]} Rb6 {[%emt 0:00:00]} 35. Nc2 {[%emt 0:11:29]} Rba6 $2 {[%emt 0:13:00]} ({Black should try} 35... Bc4 $19 {[%cal Od6d5] aiming for ...d5!} 36. Ne3 d5) 36. a3 $2 (36. Nb4 $11 {and White is okay.}) 36... Bc4 {[%emt 0:00:00]} 37. Ne4 {Weighted Error Value: White=0.50/Black=0.24 (precise) .  Loses game:     	White=2     	---        Missed win:     	---       	Black=1      Mistake:       	White=5     	Black=1      Inaccurate:     	---       	Black=1      OK:         	White=12    	Black=13     Best:        	White=2     	---        Strong:       	---       	Black=3} 1/2-1/2

[Event "53rd Indian Junior Open-ch 2024"]
[Site "Karnal"]
[Date "2024.09.19"]
[Round "5.6"]
[White "Agnivo Chakraborty"]
[Black "Manish Anto Cristiano F"]
[Result "0-1"]
[ECO "C22"]
[WhiteElo "1943"]
[BlackElo "2364"]
[Annotator "TA"]
[PlyCount "138"]
[EventDate "2024.09.16"]
[EventType "swiss"]
[EventCountry "IND"]
[SourceTitle "playchess.com"]
[Source "ChessBase"]
[SourceQuality "1"]
[TimeControl "5400+30"]

{[%evp 11,138,1,12,-1,19,10,25,0,0,-16,0,-7,-14,-6,-5,-29,-15,-38,-40,-34,-25,-29,-30,-64,-7,-30,-10,-15,0,0,0,0,0,0,0,-36,-29,-60,-44,-120,-120,-166,-166,-157,-160,-199,-185,-179,-143,-139,-121,-131,-122,-141,-134,-170,-183,-170,-162,-239,-239,-248,-1,-248,-248,-248,-248,-365,-384,-822,-233,-240,-239,-6224,-6224,-6238,-6223,-6238,-6238,-6223,-6223,-29965,-29966,-29966,-29967,-29966,-29969,-29967,-29971,-29970,-29972,-29971,-29973,-29970,-29974,-29974,-29975,-29975,-29976,-29975,-29977,-29977,-29978,-29977,-29979,-29980,-29978,-29978,-29977,-29979,-29975,-29981,-29982,-29983,-29981,-29981,-29982,-29982,-29983,-29982,-29979,-29979,-29980,-29977,-29978,-29978,-316,-29989,-29990]} 1. e4 {[%emt 0:00:03]} d6 {[%emt 0:00:14]} 2. d4 {[%emt 0:00:12]} Nf6 {[%emt 0:00:20]} 3. Nc3 {[%emt 0:00:06]} e5 {[%emt 0:00:06]} 4. Bc4 {[%emt 0:03:40]} exd4 {[%emt 0:03:44]} 5. Qxd4 {[%emt 0:00:08]} Nc6 {[%emt 0:00:05]} 6. Qe3 {[%emt 0:00:13]} Be7 {[%emt 0:03:37] C22: Centre Game.} 7. Bd2 {[%emt 0:00:34]} Be6 {[%emt 0:05:07]} 8. Bxe6 {[%emt 0:00:56]} fxe6 {[%emt 0:00:08]} 9. Qh3 $146 {[%emt 0:01:45]} ({Predecessor:} 9. O-O-O O-O 10. f4 Qb8 11. Qh3 e5 12. fxe5 Nxe5 13. Qe6+ Rf7 14. Nh3 Qc8 15. Qb3 {½-½ Atabayev,Y (2217)-Sachdev,T (2398) Commonwealth-ch 2010 (5)}) 9... Qd7 {[%emt 0:01:24]} 10. Nf3 {[%emt 0:00:22]} e5 {[%emt 0:05:18]} 11. Qxd7+ {[%emt 0:01:00]} Kxd7 {[%emt 0:02:14]} 12. Be3 {[%emt 0:01:01]} b5 {[%emt 0:03:45]} 13. a3 {[%emt 0:12:21]} Rab8 {[%emt 0:03:04]} 14. Bg5 {[%emt 0:06:05]} Rhf8 {[%emt 0:05:24]} 15. Bxf6 {[%emt 0:03:38]} Bxf6 {[%emt 0:06:05]} 16. Nd5 {[%emt 0:03:13]} Bd8 {[%emt 0:05:21]} 17. O-O-O {[%emt 0:05:13]} h6 {[%emt 0:05:01]} (17... Nd4 $15 18. Nxd4 exd4) 18. h4 {[%emt 0:00:18]} Ke6 {[%emt 0:01:10]} (18... Nd4 {simplifies} 19. Nxd4 exd4 20. Rxd4 Rxf2 21. Rd2 Rxd2 22. Kxd2 c6) 19. h5 {[%emt 0:05:02]} Ne7 {[%emt 0:00:37]} 20. Rh4 {[%emt 0:07:40]} c6 {[%emt 0:04:34]} 21. Ne3 {[%emt 0:04:03]} Bb6 {[%emt 0:02:46]} 22. Rg4 {[%emt 0:02:22]} Rf7 {[%emt 0:02:13]} 23. Kd2 {[%emt 0:09:35]} Rbf8 {[%emt 0:03:22]} 24. Ke2 {[%emt 0:01:24]} Rf4 {[%emt 0:02:38]} 25. Rxg7 {[%emt 0:01:32]} ({Better is} 25. Rh4 $15) 25... Rxe4 $17 {[%emt 0:00:12]} 26. Rg4 {[%emt 0:12:03]} (26. Rg1 $17) 26... Rxg4 $19 {[%emt 0:03:21]} 27. Nxg4 {[%emt 0:00:06]} Nf5 {[%emt 0:00:36]} 28. Rg1 {[%emt 0:09:53]} e4 {[%emt 0:03:01]} 29. Nd2 {[%emt 0:01:23]} Rg8 {[%emt 0:05:34]} 30. Ne3 {[%emt 0:01:56]} Bxe3 {[%emt 0:05:12]} 31. fxe3 {[%emt 0:00:05]} Ng3+ $1 {[%emt 0:00:40]} 32. Kf2 {[%emt 0:00:35]} Kf5 {[%emt 0:01:48]} (32... Nxh5 $6 33. Nxe4 Rg6 34. Rh1 $14) 33. c4 {[%emt 0:01:20]} bxc4 {[%emt 0:04:05]} (33... Nxh5 34. g4+ Rxg4 35. Rxg4 Kxg4 36. Nxe4 $14) 34. Nxc4 {[%emt 0:00:24]} d5 {[%emt 0:00:37]} (34... Nxh5 35. g4+ (35. Nxd6+ Ke5 $16) 35... Kf6 36. gxh5 $18) 35. Na5 {[%emt 0:00:18]} (35. Nd2 {was necessary.}) 35... Kg4 $1 $19 {[%emt 0:00:47]} (35... Nxh5 36. Nxc6 Kg4 37. Rd1 $11) (35... c5 36. Rd1 $15) 36. Nxc6 {[%emt 0:01:45]} Rf8+ {[%emt 0:00:27]} 37. Ke1 {[%emt 0:00:12]} Rc8 {[%emt 0:01:06]} (37... Nxh5 38. Rf1 (38. Nxa7 d4 $17) 38... Rc8 39. Nd4 $11) (37... Kxh5 38. b4 $11) 38. Ne5+ {[%emt 0:02:04]} Kf5 $1 {[%emt 0:00:56]} (38... Kxh5 39. Kf2 Kh4 40. Ng6+ Kg4 41. Ne5+ Kh4 42. Ng6+ Kg4 43. Ne5+ Kf5 44. Nd7 $15) 39. Kf2 {[%emt 0:01:17]} (39. Nf7 {is the only way for White.} Ke6 (39... Nxh5 $2 40. Nd6+ Kg5 41. Nxc8 $18) (39... Rc1+ $2 40. Kf2 $19) 40. Nxh6 Rc1+ (40... Nxh5 41. g4 $11) 41. Kf2 Nh1+ 42. Rxh1 Rxh1 43. g4 Rh2+ 44. Ke1) 39... Nxh5 $19 {[%emt 0:00:24]} 40. g4+ $2 {[%emt 0:01:28]} (40. Nf7 Rc2+ 41. Ke1) 40... Kxe5 $19 {[%emt 0:00:05]} 41. gxh5 {[%emt 0:00:02]} Rc2+ {[%emt 0:00:06]} 42. Ke1 $2 {[%emt 0:00:42]} (42. Kf1 Rxb2 43. Rg7) 42... Rc1+ $19 {[%emt 0:04:00]} (42... Rxb2 43. Rg7 $17) 43. Kf2 {[%emt 0:00:05]} Rxg1 {[%emt 0:01:26]} 44. Kxg1 {[%emt 0:00:02]} d4 {[%emt 0:00:08]} 45. Kf2 {[%emt 0:03:41] [#]} d3 $1 {[%emt 0:00:09]} 46. b3 {[%emt 0:00:21]} Kf5 {[%emt 0:01:06]} 47. Ke1 {[%emt 0:00:38]} Kg4 {[%emt 0:00:28]} 48. b4 {[%emt 0:01:04]} Kxh5 {[%emt 0:04:22]} 49. b5 {[%emt 0:00:18]} Kg4 {[%emt 0:00:06]} 50. a4 {[%emt 0:00:04]} h5 {[%emt 0:00:13]} 51. a5 {[%emt 0:00:03] [#]} h4 $1 {[%emt 0:00:04]} 52. b6 {[%emt 0:00:28]} axb6 {[%emt 0:00:20]} 53. axb6 {[%emt 0:00:04]} h3 {[%emt 0:00:05]} 54. b7 {[%emt 0:01:52]} h2 {[%emt 0:00:05]} 55. b8=Q {[%emt 0:00:14]} h1=Q+ {[%emt 0:00:06]} (55... h1=R+ $2 56. Kf2 Rc1 57. Qf4+ Kh5 58. Qxe4 $18) 56. Kd2 {[%emt 0:00:14]} Qg2+ {[%emt 0:00:37]} 57. Kc3 {[%emt 0:00:05]} Kf3 {[%emt 0:01:28]} 58. Qh8 {[%emt 0:01:44]} Qc2+ {[%emt 0:01:43]} 59. Kb4 {[%emt 0:00:02]} Qb1+ {[%emt 0:00:18]} 60. Kc4 {[%emt 0:00:09]} Qc1+ {[%emt 0:00:20]} (60... Kxe3 61. Qh3+ Kd2 (61... Kf4 62. Qh6+ Kg4 63. Qe6+ Kf4 64. Qh6+ Kf3 65. Qh3+ Ke2 66. Qg2+ Ke3 67. Qg5+ Ke2 68. Qg2+ Ke3 69. Qg5+ Kf3 70. Qf5+ Ke3 71. Qg5+ $11) 62. Qg2+ Kc1 63. Qg1+ Kb2 64. Qg7+ Kc1 65. Qg1+ Kb2 66. Qg7+ Kc1 67. Qg1+ $11) 61. Kd5 {[%emt 0:01:06]} Qxe3 {[%emt 0:02:19]} ({Worse is} 61... Kxe3 62. Qh6+ Ke2 63. Qxc1 d2 64. Qc2 Kf3 65. Qxd2 (65. Qxe4+ Kg3 66. Qe3+ Kg4 67. Qxd2 Kf5 68. Qh6 Kg4 69. Ke4 Kg3 70. Ke3 Kg4 71. Qg6+ Kh4 72. Kf4 Kh3 73. Qg3#) 65... e3 66. Qd3) 62. Qh5+ {[%emt 0:00:33]} Kf2 {[%emt 0:00:07]} 63. Qh2+ {[%emt 0:00:39]} Ke1 {[%emt 0:00:20]} 64. Qh1+ {[%emt 0:00:13]} Kd2 {[%emt 0:00:11]} 65. Qg2+ {[%emt 0:00:33]} Qe2 {[%emt 0:00:06]} 66. Qg5+ {[%emt 0:00:17]} e3 {[%emt 0:00:46]} 67. Ke4 {[%emt 0:00:28]} Qf2 {[%emt 0:00:26]} 68. Qa5+ {[%emt 0:00:30]} Ke2 $2 {[%emt 0:00:06]} (68... Kd1 {mates} 69. Qa1+ Ke2 70. Qa6 Qf3+ 71. Ke5 Qg4 72. Kd5 Qf4 73. Kc5 Kf2 74. Qxd3 e2 75. Kb5 e1=Q (75... e1=B 76. Qc4 $11) 76. Qc2+ Qe2+ 77. Qxe2+ Kxe2 78. Kc5 Qf6 79. Kd5 Kd3 80. Kc5 Qe6 81. Kb5 Qd6 82. Ka4 Qb6 83. Ka3 Kc3 84. Ka4 Qb4#) 69. Qb5 $2 {[%emt 0:00:22]} (69. Qh5+ $19 Kd2 70. Qh6) 69... Qh4+ {[%emt 0:00:06]} 0-1

[Event "53rd Indian Junior Open-ch 2024"]
[Site "Karnal"]
[Date "2024.09.19"]
[Round "5.7"]
[White "Adireddy Arjun"]
[Black "Bivor Adak"]
[Result "1/2-1/2"]
[ECO "C18"]
[WhiteElo "2343"]
[BlackElo "1918"]
[Annotator "TA"]
[PlyCount "69"]
[EventDate "2024.09.16"]
[EventType "swiss"]
[EventCountry "IND"]
[SourceTitle "playchess.com"]
[Source "ChessBase"]
[SourceQuality "1"]
[TimeControl "5400+30"]

{[%evp 16,69,18,0,0,1,0,-9,-4,-16,-7,-24,-9,-8,31,25,79,81,77,78,92,87,101,82,87,87,89,58,54,39,46,35,29,49,35,27,19,33,62,0,0,0,0,0,0,0,0,0,0,0,0,0,0,0,0,0]} 1. e4 {[%emt 0:00:25]} e6 {[%emt 0:01:17]} 2. d4 {[%emt 0:00:06]} d5 {[%emt 0:00:14]} 3. Nc3 {[%emt 0:00:04]} Bb4 {[%emt 0:05:31]} 4. e5 {[%emt 0:00:03]} c5 {[%emt 0:00:30][%cal Bc7c5,Bc5d4][%mdl 32]} 5. a3 {[%emt 0:00:05]} Ba5 {[%emt 0:00:21]} 6. b4 {[%emt 0:15:33]} cxd4 {[%emt 0:00:11]} 7. Nb5 {[%emt 0:03:49]} Bc7 {[%emt 0:01:03]} 8. f4 {[%emt 0:05:47]} Bd7 {[%emt 0:02:51]} 9. Nf3 {[%emt 0:02:18]} Bxb5 {[%emt 0:03:32]} 10. Bxb5+ {[%emt 0:00:10]} Nc6 {[%emt 0:00:35]} 11. Nxd4 {[%emt 0:03:59]} Nge7 {[%emt 0:01:18]} 12. Be3 {[%emt 0:05:22]} O-O {[%emt 0:05:34]} 13. c3 {[%emt 0:02:37][%cal Bc2c3,Bc3d4][%mdl 32]} Bb6 {[%emt 0:07:08]} 14. O-O {[%emt 0:07:45]} Bxd4 {[%emt 0:13:55]} 15. cxd4 {[%emt 0:00:12]} Qb6 {[%emt 0:04:33]} (15... a5 $11) 16. Bd3 $16 {[%emt 0:16:13]} f5 {[%emt 0:06:19]} 17. Rc1 {[%emt 0:01:22]} Rac8 {[%emt 0:01:41]} 18. Rc5 {[%emt 0:01:31]} Qd8 {[%emt 0:05:18]} 19. Qa4 {[%emt 0:00:25]} a6 {[%emt 0:07:32]} 20. Rfc1 {[%emt 0:03:03] White has more active pieces.} Na7 {[%emt 0:06:20][%cal Bc6a7,Ba7c8,Bc8b6,Bb6c4][%mdl 32]} 21. Rxc8 {[%emt 0:16:11]} Naxc8 {[%emt 0:01:30]} 22. b5 {[%emt 0:01:53]} Nb6 {[%emt 0:04:00]} 23. Qb4 {[%emt 0:01:03]} Nc4 {[%emt 0:00:21]} 24. bxa6 {[%emt 0:06:18]} bxa6 {[%emt 0:07:49]} 25. Bxc4 {[%emt 0:01:07]} dxc4 {[%emt 0:00:08]} 26. Qxc4 {[%emt 0:00:06]} Qb6 {[%emt 0:00:40]} 27. Bf2 {[%emt 0:05:57]} ({White should play} 27. Qb4 $14 Qxb4 28. axb4) 27... Rc8 $11 {[%emt 0:02:45] The position is equal.} 28. Qf1 {[%emt 0:00:10]} Rxc1 {[%emt 0:01:22]} 29. Qxc1 {[%emt 0:00:02][%cal Od4d5][%mdl 4096] Endgame. Hoping for d5! KQB-KQN} Qb7 {[%emt 0:02:49]} 30. Qc2 {[%emt 0:01:22]} Nd5 {[%emt 0:00:15]} 31. g3 {[%emt 0:00:29]} Kf7 {[%emt 0:00:33]} 32. Kf1 {[%emt 0:00:25]} Ne7 {[%emt 0:00:56]} 33. Kg1 {[%emt 0:00:36]} Nd5 {[%emt 0:01:13]} 34. Kf1 {[%emt 0:00:27]} Ne7 {[%emt 0:00:06]} 35. Kg1 {[%emt 0:00:34] Dodges Qh1+.   Weighted Error Value: White=0.08 (flawless) /Black=0.08 (flawless) .  Mistake:       	White=1     	Black=1      Inaccurate:     	White=1     	Black=2      OK:         	White=11    	Black=10     Best:        	---       	Black=2} 1/2-1/2

[Event "53rd Indian Junior Open-ch 2024"]
[Site "Karnal"]
[Date "2024.09.19"]
[Round "5.8"]
[White "Shadhursshaan R"]
[Black "Rohit S"]
[Result "1-0"]
[ECO "E08"]
[WhiteElo "1933"]
[BlackElo "2309"]
[Annotator "RC"]
[PlyCount "110"]
[EventDate "2024.09.16"]
[EventType "swiss"]
[EventCountry "IND"]
[SourceTitle "playchess.com"]
[Source "ChessBase"]
[SourceQuality "1"]
[TimeControl "5400+30"]

1. d4 {[%emt 0:00:03]} d5 {[%emt 0:00:45]} 2. c4 {[%emt 0:00:06]} e6 {[%emt 0:00:04]} 3. Nf3 {[%emt 0:00:04]} Nf6 {[%emt 0:00:23]} 4. g3 {[%emt 0:00:27]} Bb4+ {[%emt 0:00:10]} 5. Bd2 {[%emt 0:00:36]} Be7 {[%emt 0:00:06]} 6. Bg2 {[%emt 0:00:07]} O-O {[%emt 0:00:06]} 7. O-O {[%emt 0:00:04]} c6 {[%emt 0:01:12]} 8. Qc2 {[%emt 0:00:30]} Nbd7 {[%emt 0:00:48]} 9. Bf4 {[%emt 0:00:47]} a5 {[%emt 0:00:32]} 10. Nbd2 {[%emt 0:07:48]} Nh5 {[%emt 0:07:26]} 11. Rac1 {[%emt 0:01:12]} Nxf4 {[%emt 0:03:30]} 12. gxf4 {[%emt 0:00:03]} b5 {[%emt 0:07:25]} 13. cxb5 {[%emt 0:00:52]} cxb5 {[%emt 0:00:05]} 14. f5 {[%emt 0:02:59]} exf5 {[%emt 0:12:56]} 15. Qxf5 {[%emt 0:01:41]} Nb6 {[%emt 0:00:27]} 16. Qc2 {[%emt 0:04:34]} Bd6 {[%emt 0:11:16]} 17. Ne5 {[%emt 0:10:23]} Be6 {[%emt 0:02:12]} 18. Qc6 {[%emt 0:08:59]} b4 {[%emt 0:02:05]} 19. Qb5 {[%emt 0:00:12]} Nc8 {[%emt 0:12:04]} 20. f4 {[%emt 0:01:56]} Ne7 {[%emt 0:02:09]} 21. Nb3 {[%emt 0:09:00]} Nf5 {[%emt 0:03:05]} 22. Qd3 {[%emt 0:04:35]} Nh4 {[%emt 0:02:42]} 23. Bh1 {[%emt 0:02:28]} Bf5 {[%emt 0:04:38]} 24. Qe3 {[%emt 0:02:36]} Re8 {[%emt 0:07:06]} 25. Nc5 {[%emt 0:02:53]} Rb8 {[%emt 0:01:33]} 26. Qg3 {[%emt 0:03:09]} Rb6 {[%emt 0:00:59]} 27. Qb3 {[%emt 0:08:52]} Bxe5 {[%emt 0:00:53]} 28. dxe5 {[%emt 0:00:03]} Rg6+ {[%emt 0:03:10]} 29. Kf2 {[%emt 0:00:47]} Be6 {[%emt 0:00:21]} 30. Rg1 {[%emt 0:02:57]} Rh6 {[%emt 0:02:11]} 31. Rg5 {[%emt 0:01:17]} Ng6 {[%emt 0:01:30]} 32. Nxe6 {[%emt 0:03:13]} fxe6 {[%emt 0:00:10]} 33. Kg3 {[%emt 0:00:08]} Rf8 {[%emt 0:00:44]} 34. e3 {[%emt 0:00:29]} Nh4 {[%emt 0:05:26]} 35. h3 {[%emt 0:01:03]} Rf5 {[%emt 0:00:43]} 36. Rg4 {[%emt 0:00:26]} Rfh5 {[%emt 0:00:34]} 37. Kf2 {[%emt 0:00:39]} Nf5 {[%emt 0:01:58]} 38. Bg2 {[%emt 0:00:12]} Rg6 {[%emt 0:00:37]} 39. Qc2 {[%emt 0:01:44]} Rxg4 {[%emt 0:01:27]} 40. hxg4 {[%emt 0:00:16]} Qh4+ {[%emt 0:00:03]} 41. Ke2 {[%emt 0:00:20]} Qxg4+ {[%emt 0:00:06]} 42. Kd3 {[%emt 0:00:06]} h6 {[%emt 0:02:17]} 43. Qe2 {[%emt 0:00:45]} Qg6 {[%emt 0:01:39]} 44. e4 {[%emt 0:00:07]} Qg3+ {[%emt 0:00:57]} 45. Qf3 {[%emt 0:00:17]} dxe4+ {[%emt 0:00:11]} 46. Kxe4 {[%emt 0:00:06]} Qg6 {[%emt 0:00:04]} 47. Kd3 {[%emt 0:01:08]} Rh2 {[%emt 0:01:04]} 48. Rc8+ {[%emt 0:00:24]} Kh7 {[%emt 0:00:02]} 49. Qa8 {[%emt 0:00:12]} Qf7 {[%emt 0:02:02]} 50. Rh8+ {[%emt 0:00:12]} Kg6 {[%emt 0:00:05]} 51. Bc6 {[%emt 0:00:04]} Rh3+ {[%emt 0:01:10]} 52. Kc4 {[%emt 0:00:52]} Ne3+ {[%emt 0:00:29]} 53. Kb5 {[%emt 0:00:11]} Qe7 {[%emt 0:00:40]} 54. Re8 {[%emt 0:06:15]} Qf7 {[%emt 0:00:00]} 55. Rf8 {[%emt 0:00:17]} Qe7 {[%emt 0:01:01]} 1-0

[Event "53rd Indian Junior Open-ch 2024"]
[Site "Karnal"]
[Date "2024.09.19"]
[Round "5.9"]
[White "Chaudhari, Ashish"]
[Black "Gawai Siddhant"]
[Result "1/2-1/2"]
[ECO "D38"]
[WhiteElo "1943"]
[BlackElo "2131"]
[Annotator "RC"]
[PlyCount "99"]
[EventDate "2024.09.16"]
[EventType "swiss"]
[EventCountry "IND"]
[SourceTitle "playchess.com"]
[Source "ChessBase"]
[SourceQuality "1"]
[TimeControl "5400+30"]

1. d4 {[%emt 1:31:00]} Nf6 {[%emt 1:31:00]} 2. c4 {[%emt 0:00:30]} e6 {[%emt 0:00:30]} 3. Nf3 {[%emt 0:00:30]} d5 {[%emt 0:00:30]} 4. cxd5 {[%emt 0:00:30]} exd5 {[%emt 0:00:30]} 5. Nc3 {[%emt 0:00:30]} Bb4 {[%emt 0:00:30]} 6. Bg5 {[%emt 0:00:30]} h6 {[%emt 0:00:30]} 7. Bxf6 {[%emt 0:00:30]} Qxf6 {[%emt 0:00:30]} 8. Qb3 {[%emt 0:00:30]} c5 {[%emt 0:00:30]} 9. e3 {[%emt 0:00:30]} O-O {[%emt 0:00:30]} 10. Be2 {[%emt 0:00:30]} Bxc3+ {[%emt 0:00:30]} 11. Qxc3 {[%emt 0:00:30]} c4 {[%emt 0:00:30]} 12. b3 {[%emt 0:00:30]} cxb3 {[%emt 0:00:30]} 13. Qxb3 {[%emt 0:00:30]} Rd8 {[%emt 0:00:30]} 14. O-O {[%emt 0:00:30]} Nc6 {[%emt 0:00:30]} 15. Rfc1 {[%emt 0:00:30]} Qd6 {[%emt 0:00:30]} 16. Bb5 {[%emt 0:00:30]} Bg4 {[%emt 0:00:30]} 17. Bxc6 {[%emt 0:00:30]} Bxf3 {[%emt 0:00:30]} 18. Bb5 {[%emt 0:00:30]} Bg4 {[%emt 0:00:30]} 19. h3 {[%emt 0:00:30]} Be6 {[%emt 0:00:30]} 20. Bd3 {[%emt 0:00:30]} b6 {[%emt 0:00:30]} 21. Rc3 {[%emt 0:00:30]} Rac8 {[%emt 0:00:30]} 22. Rac1 {[%emt 0:00:30]} g6 {[%emt 0:00:30]} 23. Ba6 {[%emt 0:00:30]} Rxc3 {[%emt 0:00:30]} 24. Qxc3 {[%emt 0:00:30]} Kh7 {[%emt 0:00:30]} 25. a4 {[%emt 0:00:30]} Qe7 {[%emt 0:00:30]} 26. Qb2 {[%emt 0:00:30]} Rd7 {[%emt 0:00:30]} 27. Qc3 {[%emt 0:00:30]} Rd8 {[%emt 0:00:30]} 28. Qb2 {[%emt 0:00:30]} h5 {[%emt 0:00:30]} 29. Qc3 {[%emt 0:00:30]} h4 {[%emt 0:00:30]} 30. Qc7 {[%emt 0:00:30]} Qxc7 {[%emt 0:00:30]} 31. Rxc7 {[%emt 0:00:30]} Rd7 {[%emt 0:00:30]} 32. Rc6 {[%emt 0:00:30]} Kg7 {[%emt 0:00:30]} 33. Bc8 {[%emt 0:00:30]} Re7 {[%emt 0:00:30]} 34. Bxe6 {[%emt 0:00:30]} fxe6 {[%emt 0:00:30]} 35. Kf1 {[%emt 0:00:30]} Kf6 {[%emt 0:00:30]} 36. a5 {[%emt 0:00:30]} bxa5 {[%emt 0:00:30]} 37. Ra6 Rb7 {[%emt 0:00:30]} 38. Rxa5 {[%emt 0:01:00]} Kf5 {[%emt 0:00:30]} 39. Ra6 {[%emt 0:00:30]} g5 {[%emt 0:00:30]} 40. Ke2 {[%emt 0:00:30]} e5 {[%emt 0:00:30]} 41. dxe5 {[%emt 0:00:30]} Kxe5 {[%emt 0:00:30]} 42. Rg6 {[%emt 0:00:30]} Kf5 {[%emt 0:00:30]} 43. Rd6 {[%emt 0:00:30]} Ke4 {[%emt 0:00:30]} 44. Re6+ {[%emt 0:00:30]} Kf5 {[%emt 0:00:30]} 45. Rd6 {[%emt 0:00:30]} Ke5 {[%emt 0:00:30]} 46. Rg6 {[%emt 0:00:30]} Kf5 {[%emt 0:00:30]} 47. Rd6 {[%emt 0:00:30]} Rb5 {[%emt 0:00:30]} 48. Ra6 {[%emt 0:00:30]} Rb7 {[%emt 0:00:30]} 49. Rd6 {[%emt 0:00:30]} Ke5 {[%emt 0:00:30]} 50. Rg6 {[%emt 0:00:30]} 1/2-1/2